bitfinex-derivatives/quotes_SOLF0:USTF0_20250923
["timestamp","ask_amount","ask_price","bid_price","bid_amount"]
[1758645736534,11.6826,218.71,218.6,7.02]
[1758645736937,7.57,218.71,218.6,7.02]
[1758645737135,4.1128,218.7,218.62,4.1141]
[1758645737335,7.57,218.71,218.62,4.1141]
[1758645737536,7.57,218.71,218.6,7.02]
[1758645738531,11.6826,218.71,218.62,4.1139]
[1758645738733,7.57,218.71,218.61,3.1725009]
[1758645739028,7.57,218.71,218.65,3.1725009]
[1758645740232,7.57,218.71,218.63,7.02]
[1758645740438,7.57,218.74,218.6,3.1725009]
[1758645741942,63.9657,218.73,218.6,3.1725009]
[1758645742137,7.57,218.72,218.6,3.1725009]
[1758645742333,4.113,218.68,218.6,3.1725009]
[1758645742538,7.57,218.67,218.56,3.1725009]
[1758645743044,4.1134,218.66,218.56,7.2876009]
[1758645743247,7.07,218.65,218.55,7.02]
[1758645743745,4.1137,218.64,218.55,7.02]
[1758645744046,7.07,218.63,218.55,7.02]
[1758645744346,4.1141,218.62,218.55,7.02]
[1758645745142,7.07,218.63,218.55,11.1354]
[1758645746148,11.1841,218.63,218.55,7.02]
[1758645747043,4.1143,218.61,218.55,7.02]
[1758645747249,4.1143,218.61,218.5,7.68]
[1758645747446,7.07,218.6,218.5,7.68]
[1758645747949,7.07,218.6,218.53,4.1158]
[1758645749246,129.1639,218.64,218.55,4.1154]
[1758645749552,129.1639,218.64,218.54,7.68]
[1758645750154,129.1639,218.64,218.54,11.7956]
[1758645751951,7.07,218.63,218.54,11.7956]
[1758645753554,122.0939,218.64,218.54,11.7956]
[1758645753754,7.07,218.63,218.51,4.116]
[1758645754247,7.07,218.58,218.49,7.68]
[1758645754850,7.07,218.58,218.5,4.1163]
[1758645755047,7.07,218.58,218.49,7.68]
[1758645756759,7.07,218.58,218.52,4.1159]
[1758645757762,7.07,218.62,218.51,7.68]
[1758645758359,7.07,218.62,218.56,4.1151]
[1758645758560,7.07,218.69,218.57,7.68]
[1758645758761,124.99,218.69,218.57,7.68]
[1758645759565,7.07,218.69,218.57,7.68]
[1758645759766,7.07,218.69,218.6,7.68]
[1758645761064,7.07,218.69,218.62,4.1141]
[1758645761965,7.07,218.69,218.63,4.1137]
[1758645762168,7.07,218.73,218.63,7.68]
[1758645762367,7.07,218.74,218.59,7.68]
[1758645762568,7.07,218.74,218.6,4.1143]
[1758645762866,11.1829,218.69,218.59,7.68]
[1758645763262,7.07,218.69,218.61,4.1142]
[1758645764068,7.07,218.69,218.59,11.7947]
[1758645764367,63.9669,218.73,218.59,7.68]
[1758645764368,7.07,218.7,218.59,7.68]
[1758645764570,4.113,218.68,218.59,7.68]
[1758645764868,4.113,218.68,218.6,4.1144]
[1758645765068,7.07,218.7,218.59,7.68]
[1758645765269,7.07,218.7,218.62,4.1141]
[1758645766265,7.07,218.7,218.64,4.1137]
[1758645766466,117.82,218.75,218.63,7.68]
[1758645767168,117.82,218.75,218.66,4.1133]
[1758645767369,117.82,218.75,218.63,7.68]
[1758645767563,7.07,218.76,218.63,7.68]
[1758645767763,124.89,218.76,218.63,7.68]
[1758645767961,124.89,218.76,218.65,7.68]
[1758645768669,7.07,218.76,218.65,7.68]
[1758645768870,7.07,218.76,218.69,4.1126]
[1758645769767,345.84,218.77,218.71,4.1124]
[1758645770468,345.84,218.77,218.73,4.112]
[1758645770672,7.07,218.79,218.7,7.68]
[1758645771676,4.1104,218.82,218.73,11.792]
[1758645773076,7.07,218.83,218.75,4.1116]
[1758645773278,7.07,218.83,218.75,11.4216]
[1758645773979,74.43207545,218.84,218.75,11.4216]
[1758645774186,7.35,218.87,218.77,4.1113]
[1758645774578,7.35,218.87,218.79,4.1109]
[1758645774978,7.35,218.87,218.78,7.31]
[1758645775178,4.1096,218.86,218.78,7.31]
[1758645777579,7.35,218.87,218.78,7.31]
[1758645778083,117.7,218.88,218.81,11.4205]
[1758645778982,11.4592,218.89,218.81,11.4205]
[1758645779181,11.4592,218.89,218.81,7.31]
[1758645779679,7.35,218.89,218.77,7.31]
[1758645780878,11.4596,218.86,218.77,11.4211]
[1758645781178,63.9256,218.87,218.77,7.31]
[1758645781385,4.1107,218.8,218.72,7.31]
[1758645783086,7.35,218.81,218.72,7.31]
[1758645783285,7.35,218.78,218.64,7.31]
[1758645783887,4.1115,218.77,218.68,11.4228]
[1758645784089,7.35,218.78,218.68,7.31]
[1758645785890,7.35,218.78,218.69,4.1126]
[1758645786290,7.35,218.78,218.68,7.31]
[1758645787189,11.4613,218.78,218.7,4.1124]
[1758645788393,4.1115,218.76,218.68,11.4229]
[1758645788591,7.35,218.78,218.69,2.02867763]
[1758645788795,7.35,218.76,218.66,2.02867763]
[1758645788995,11.4616,218.76,218.66,6.14187763]
[1758645789695,4.1119,218.74,218.66,6.14187763]
[1758645789894,4.1119,218.74,218.66,2.02867763]
[1758645790094,7.35,218.73,218.66,2.02867763]
[1758645790394,4.1122,218.72,218.66,2.02867763]
[1758645790589,7.35,218.73,218.63,2.02867763]
[1758645790795,123.97,218.73,218.63,2.02867763]
[1758645791788,7.23,218.72,218.6,13.45297763]
[1758645791994,7.23,218.7,218.6,13.45297763]
[1758645792691,11.3431,218.68,218.6,7.31]
[1758645793593,7.23,218.66,218.58,4.1147]
[1758645793799,7.23,218.66,218.55,7.58]
[1758645794997,7.23,218.66,218.58,4.1148]
[1758645795798,7.23,218.63,218.55,11.6953]
[1758645796190,7.23,218.63,218.57,4.115]
[1758645797091,7.23,218.63,218.55,11.6954]
[1758645797603,7.23,218.63,218.53,4.1158]
[1758645798095,7.23,218.63,218.51,7.58]
[1758645798794,4.1145,218.61,218.52,4.1158]
[1758645798996,7.23,218.6,218.52,4.1158]
[1758645799596,7.23,218.6,218.5,4.1163]
[1758645800098,7.23,218.56,218.5,4.1163]
[1758645801007,7.23,218.56,218.48,100.88192838]
[1758645801202,11.3454,218.56,218.47,4.1168]
[1758645802400,7.23,218.56,218.47,4.1168]
[1758645802799,4.1156,218.55,218.46,7.58]
[1758645803010,7.23,218.54,218.46,7.58]
[1758645803809,7.23,218.54,218.47,4.1168]
[1758645804609,7.23,218.54,218.44,7.01]
[1758645804810,11.3458,218.54,218.44,7.01]
[1758645805405,7.23,218.54,218.45,4.1173]
[1758645805608,7.23,218.54,218.44,7.01]
[1758645805808,7.23,218.54,218.44,71.0598]
[1758645806811,7.23,218.54,218.48,4.1166]
[1758645808110,7.02,218.58,218.49,64.0358]
[1758645808310,7.02,218.58,218.48,7.01]
[1758645809814,7.02,218.58,218.51,4.1162]
[1758645810015,7.02,218.58,218.48,71.0472]
[1758645810416,7.02,218.58,218.54,4.1156]
[1758645810606,7.02,218.57,218.48,71.0472]
[1758645810914,7.02,218.6,218.48,71.0472]
[1758645811114,7.02,218.6,218.5,7.01]
[1758645811709,7.02,218.6,218.54,4.1154]
[1758645812318,11.1346,218.6,218.52,4.1159]
[1758645813920,7.02,218.6,218.46,7.01]
[1758645814617,7.02,218.57,218.47,2.03270853]
[1758645814815,4.1154,218.56,218.47,2.03270853]
[1758645815216,7.02,218.57,218.47,2.03270853]
[1758645815620,7.02,218.57,218.48,7.01]
[1758645817217,2.74362826,218.62,218.51,7.01]
[1758645817517,64.9,218.61,218.54,4.1155]
[1758645817918,64.9,218.61,218.53,2.03270853]
[1758645818219,66.93270853,218.61,218.53,2.03270853]
[1758645818721,7.02,218.55,218.45,9.04270853]
[1758645818917,7.02,218.55,218.45,2.03270853]
[1758645819114,7.02,218.55,218.49,7.01]
[1758645819516,7.02,218.55,218.5,4.1162]
[1758645819720,7.02,218.55,218.48,2.03270853]
[1758645820420,7.02,218.55,218.45,9.04270853]
[1758645821424,7.02,218.55,218.46,7.01]
[1758645822125,4.1156,218.54,218.46,7.01]
[1758645822922,7.02,218.53,218.46,7.01]
[1758645823425,7.02,218.55,218.48,4.1166]
[1758645824223,7.02,218.55,218.48,2.03270853]
[1758645824423,7.02,218.55,218.49,7.01]
[1758645825832,7.02,218.55,218.52,4.116]
[1758645826326,7.02,218.56,218.48,6.14940853]
[1758645826526,7.02,218.56,218.48,2.03270853]
[1758645826728,7.02,218.56,218.49,7.01]
[1758645826928,7.02,218.56,218.51,4.1162]
[1758645827230,7.02,218.57,218.51,4.1162]
[1758645827424,7.02,218.57,218.48,9.04270853]
[1758645828723,2.03270853,218.58,218.48,9.04270853]
[1758645828924,2.03270853,218.58,218.44,64.0496]
[1758645828925,7.02,218.57,218.45,2.03270853]
[1758645829124,7.02,218.54,218.44,7.01]
[1758645829526,7.02,218.51,218.44,7.01]
[1758645831132,7.02,218.54,218.46,4.117]
[1758645831330,7.02,218.54,218.44,7.01]
[1758645831524,11.1357,218.54,218.45,2.03270853]
[1758645831925,7.02,218.54,218.44,7.01]
[1758645832832,4.1162,218.51,218.44,11.1275]
[1758645833031,7.02,218.5,218.44,7.01]
[1758645833628,7.02,218.5,218.42,2.03270853]
[1758645834931,7.51,218.51,218.42,73.79690853]
[1758645835434,7.51,218.51,218.42,9.74270853]
[1758645835928,7.51,218.5,218.46,4.1169]
[1758645836134,7.51,218.53,218.46,4.1169]
[1758645836933,4.1161,218.52,218.46,4.1169]
[1758645837128,7.51,218.53,218.44,4.1174]
[1758645837432,7.51,218.53,218.42,7.71]
[1758645837628,117.22,218.54,218.42,9.74270853]
[1758645838229,7.51,218.53,218.42,9.74270853]
[1758645839033,7.51,218.5,218.45,4.1172]
[1758645839333,11.6263,218.51,218.45,4.1172]
[1758645840631,2.03270853,218.53,218.43,4.1177]
[1758645840632,4.1165,218.5,218.43,4.1177]
[1758645840832,7.51,218.49,218.43,4.1177]
[1758645841532,7.51,218.49,218.41,4.118]
[1758645842038,11.6266,218.49,218.41,4.118]
[1758645842337,11.6266,218.49,218.43,4.1177]
[1758645843729,4.1168,218.48,218.43,4.1177]
[1758645843935,7.51,218.49,218.38,9.74270853]
[1758645844739,7.51,218.46,218.4,4.1182]
[1758645846536,4.1175,218.45,218.38,11.8285]
[1758645846736,7.51,218.44,218.38,7.71]
[1758645847235,7.51,218.44,218.39,4.1183]
[1758645847630,4.1175,218.45,218.39,4.1183]
[1758645847834,7.51,218.44,218.39,4.1183]
[1758645848039,4.1175,218.45,218.39,4.1183]
[1758645848533,4.1177,218.43,218.37,4.1187]
[1758645848739,11.6277,218.43,218.37,4.1187]
[1758645848942,7.51,218.43,218.37,4.1187]
[1758645849538,4.118,218.42,218.35,4.1191]
[1758645849745,4.118,218.42,218.34,7.71]
[1758645849933,7.51,218.41,218.34,7.71]
[1758645850131,7.51,218.4,218.34,7.71]
[1758645850332,7.51,218.4,218.31,7.71]
[1758645853534,7.51,218.4,218.34,4.1193]
[1758645853943,11.6283,218.4,218.31,7.71]
[1758645854143,64.0515,218.44,218.31,11.8299]
[1758645854337,7.14,218.44,218.31,7.71]
[1758645854735,7.14,218.38,218.33,4.1195]
[1758645854941,4.1184,218.39,218.33,4.1195]
[1758645855637,4.1184,218.39,218.31,11.8299]
[1758645855835,7.14,218.38,218.31,11.8299]
[1758645856935,7.14,218.38,218.32,4.1196]
[1758645857548,11.2587,218.38,218.32,4.1196]
[1758645860547,7.14,218.38,218.32,4.1196]
[1758645861747,7.14,218.38,218.33,4.1194]
[1758645862046,117.0,218.39,218.33,4.1194]
[1758645862247,124.14,218.39,218.33,4.1194]
[1758645862448,7.14,218.43,218.35,7.46]
[1758645862749,117.0,218.42,218.35,7.46]
[1758645863845,116.96,218.42,218.38,4.1185]
[1758645864049,7.57,218.41,218.38,4.1185]
[1758645864249,7.57,218.41,218.28,7.68]
[1758645865740,11.6888,218.38,218.32,4.1196]
[1758645865944,7.57,218.36,218.32,4.1196]
[1758645866252,116.96,218.37,218.32,4.1196]
[1758645866447,7.57,218.36,218.32,4.1196]
[1758645866848,7.57,218.36,218.3,4.1201]
[1758645867049,7.57,218.36,218.28,7.68]
[1758645867348,7.57,218.36,218.34,4.1194]
[1758645870150,32.94991507,218.84,218.33,7.68]
[1758645870151,7.57,218.41,218.33,7.68]
[1758645872953,7.57,218.41,218.35,4.1191]
[1758645873647,7.57,218.41,218.3,3.17884462]
[1758645873853,116.88,218.4,218.3,7.68]
[1758645874050,7.57,218.41,218.32,64.0858]
[1758645874250,116.86,218.4,218.37,4.1188]
[1758645874448,85.73,218.4,218.37,4.1188]
[1758645874750,7.57,218.39,218.37,4.1188]
[1758645875548,7.57,218.39,218.35,4.1191]
[1758645876149,78.16,218.4,218.35,4.1191]
[1758645876450,7.57,218.39,218.35,4.1191]
[1758645877350,7.57,218.39,218.35,11.7991]
[1758645877545,78.16,218.4,218.35,4.1191]
[1758645877744,7.57,218.39,218.35,4.1191]
[1758645877941,7.57,218.39,218.35,11.7991]
[1758645879249,7.57,218.39,218.36,4.1189]
[1758645879849,4.1177,218.43,218.32,3.17884462]
[1758645879850,11.6877,218.43,218.32,3.17884462]
[1758645880054,116.8,218.42,218.34,7.68]
[1758645881155,7.57,218.43,218.34,7.68]
[1758645881551,350.257,218.47,218.34,7.68]
[1758645881763,7.57,218.46,218.39,7.68]
[1758645882049,346.14,218.47,218.39,7.68]
[1758645882250,346.14,218.47,218.41,7.68]
[1758645882447,116.78,218.49,218.41,7.68]
[1758645882649,7.57,218.52,218.45,4.1172]
[1758645882849,7.57,218.52,218.44,7.68]
[1758645883146,88.07,218.52,218.44,7.68]
[1758645883346,88.07,218.52,218.46,4.1169]
[1758645884258,7.57,218.52,218.46,4.1169]
[1758645884460,7.57,218.52,218.44,7.68]
[1758645884461,7.57,218.52,218.48,7.68]
[1758645885354,90.51,218.53,218.45,4.1173]
[1758645886062,7.57,218.53,218.45,4.1173]
[1758645886255,7.57,218.53,218.44,10.85884462]
[1758645886256,124.31,218.53,218.46,4.1169]
[1758645887161,7.57,218.53,218.49,7.68]
[1758645887355,7.57,218.53,218.45,64.0466]
[1758645887555,116.72,218.55,218.49,4.1164]
[1758645887760,124.29,218.55,218.46,7.68]
[1758645888265,124.29,218.55,218.51,4.1161]
[1758645888458,124.29,218.55,218.51,11.7961]
[1758645888656,7.57,218.54,218.51,4.1161]
[1758645888962,116.72,218.55,218.51,4.1161]
[1758645889157,116.72,218.55,218.51,11.7961]
[1758645889860,7.57,218.58,218.51,11.7961]
[1758645890066,116.68,218.57,218.51,7.68]
[1758645890561,7.57,218.58,218.52,4.1158]
[1758645890762,67.17044462,218.64,218.51,7.68]
[1758645890763,124.23,218.61,218.51,10.85884462]
[1758645891066,7.57,218.61,218.55,10.85884462]
[1758645893968,7.57,218.61,218.55,14.97404462]
[1758645894865,11.6533,218.66,218.55,3.17884462]
[1758645895070,83.4,218.66,218.56,7.31]
[1758645895971,83.4,218.66,218.59,4.1146]
[1758645897368,7.54,218.64,218.57,4.115]
[1758645898878,7.54,218.64,218.56,10.48884462]
[1758645899075,7.54,218.64,218.56,7.31]
[1758645899473,7.54,218.64,218.57,4.1149]
[1758645900678,7.54,218.64,218.58,4.1147]
[1758645900878,7.54,218.64,218.56,7.31]
[1758645901079,7.54,218.68,218.6,7.31]
[1758645901478,7.54,218.68,218.61,4.1142]
[1758645903584,7.54,218.69,218.63,4.1139]
[1758645903886,11.6529,218.69,218.6,11.4243]
[1758645904190,7.54,218.68,218.6,11.4243]
[1758645904485,7.54,218.69,218.55,3.17884462]
[1758645905076,7.54,218.63,218.55,3.17884462]
[1758645905280,123.98,218.63,218.56,7.31]
[1758645905470,123.98,218.63,218.55,3.17884462]
[1758645905674,123.98,218.63,218.55,10.48884462]
[1758645906277,116.44,218.63,218.58,4.1148]
[1758645906483,7.54,218.62,218.58,4.1148]
[1758645906783,116.42,218.67,218.61,2.03090196]
[1758645907080,7.54,218.66,218.58,2.03090196]
[1758645907983,116.42,218.67,218.58,2.03090196]
[1758645907984,7.54,218.63,218.58,2.03090196]
[1758645908181,4.1137,218.64,218.58,2.03090196]
[1758645908380,7.54,218.63,218.58,2.03090196]
[1758645908581,7.54,218.64,218.58,2.03090196]
[1758645910083,7.54,218.64,218.58,6.14570196]
[1758645910585,13.52598956,218.7,218.61,2.03090196]
[1758645910786,123.94,218.69,218.61,2.03090196]
[1758645911381,7.54,218.69,218.61,2.03090196]
[1758645911687,7.54,218.68,218.64,2.03090196]
[1758645912083,346.1,218.71,218.67,2.03090196]
[1758645912287,353.5,218.71,218.67,2.03090196]
[1758645912480,346.1,218.71,218.67,6.14390196]
[1758645912693,7.4,218.7,218.67,6.14390196]
[1758645912986,346.1,218.71,218.67,9.10090196]
[1758645913180,116.36,218.75,218.7,2.03090196]
[1758645913484,7.4,218.74,218.7,2.03090196]
[1758645914189,116.36,218.75,218.7,2.03090196]
[1758645914389,7.4,218.74,218.7,2.03090196]
[1758645914584,120.4718,218.75,218.7,2.03090196]
[1758645914789,7.4,218.74,218.67,2.03090196]
[1758645915285,123.76,218.75,218.69,4.1126]
[1758645916492,7.4,218.75,218.69,4.1126]
[1758645916691,7.4,218.73,218.69,4.1126]
[1758645917293,7.4,218.73,218.69,11.1826]
[1758645917495,7.4,218.73,218.69,4.1126]
[1758645920898,7.4,218.73,218.68,2.03090196]
[1758645921097,120.4319,218.74,218.68,2.03090196]
[1758645921398,123.72,218.74,218.68,6.14370196]
[1758645922191,116.24,218.78,218.71,2.03090196]
[1758645922399,116.24,218.78,218.74,2.03090196]
[1758645922592,116.24,218.78,218.72,2.03090196]
[1758645922797,123.64,218.78,218.72,2.03090196]
[1758645923895,7.4,218.78,218.72,2.03090196]
[1758645924101,123.46,218.83,218.76,7.53]
[1758645924401,7.26,218.82,218.78,2.03090196]
[1758645924696,7.26,218.82,218.78,9.56090196]
[1758645924899,69.27090479,218.88,218.78,9.56090196]
[1758645924900,7.26,218.87,218.81,2.03090196]
[1758645925100,116.2,218.86,218.78,7.53]
[1758645925297,116.2,218.86,218.82,2.03090196]
[1758645925600,116.2,218.86,218.8,6.14150196]
[1758645925792,123.46,218.86,218.8,6.14150196]
[1758645925993,127.5696,218.86,218.8,2.03090196]
[1758645926190,123.46,218.86,218.8,2.03090196]
[1758645926896,123.46,218.86,218.72,63.9672]
[1758645927102,7.26,218.85,218.72,7.53]
[1758645927299,7.26,218.85,218.75,2.03090196]
[1758645927698,4.1105,218.82,218.75,2.03090196]
[1758645927896,7.26,218.81,218.75,2.03090196]
[1758645928298,7.26,218.84,218.76,4.1114]
[1758645928700,7.26,218.84,218.78,2.03090196]
[1758645929098,4.1101,218.83,218.78,2.03090196]
[1758645929400,7.26,218.84,218.78,2.03090196]
[1758645930700,7.26,218.8,218.78,2.03090196]
[1758645930903,120.2306,218.81,218.78,2.03090196]
[1758645931099,7.26,218.8,218.78,2.03090196]
[1758645931301,120.2306,218.81,218.78,2.03090196]
[1758645931603,7.26,218.8,218.78,2.03090196]
[1758645931798,120.2306,218.81,218.78,2.03090196]
[1758645931998,7.26,218.8,218.78,2.03090196]
[1758645932505,116.12,218.81,218.78,2.03090196]
[1758645932707,7.26,218.84,218.78,2.03090196]
[1758645933003,7.26,218.84,218.82,2.03090196]
[1758645934003,123.34,218.85,218.82,2.03090196]
[1758645934202,7.26,218.84,218.82,2.03090196]
[1758645934406,116.08,218.85,218.82,2.03090196]
[1758645934903,7.26,218.84,218.82,2.03090196]
[1758645935306,116.08,218.85,218.82,2.03090196]
[1758645935602,7.26,218.84,218.82,2.03090196]
[1758645936106,123.34,218.85,218.79,2.03090196]
[1758645938215,123.34,218.85,218.79,6.14160196]
[1758645939312,123.34,218.85,218.8,4.1106]
[1758645939608,7.26,218.89,218.82,2.03090196]
[1758645939808,123.26,218.89,218.86,2.03090196]
[1758645940711,7.26,218.88,218.86,2.03090196]
[1758645941407,116.0,218.89,218.86,2.03090196]
[1758645941713,7.26,218.88,218.86,2.03090196]
[1758645941901,116.0,218.89,218.86,2.03090196]
[1758645942209,7.26,218.88,218.86,2.03090196]
[1758645943009,11.3686,218.92,218.86,2.03090196]
[1758645943212,115.94,218.91,218.86,2.03090196]
[1758645943412,123.2,218.91,218.86,9.56090196]
[1758645943712,123.2,218.91,218.86,13.67030196]
[1758645944209,123.2,218.91,218.8,63.9444]
[1758645944210,123.2,218.91,218.89,2.03090196]
[1758645944711,115.92,218.93,218.89,2.03090196]
[1758645944914,123.18,218.93,218.89,2.03090196]
[1758645945110,7.26,218.92,218.89,2.03090196]
[1758645946309,115.92,218.93,218.89,2.03090196]
[1758645946510,7.26,218.92,218.89,2.03090196]
[1758645948811,115.92,218.93,218.89,2.03090196]
[1758645949519,7.26,218.92,218.89,2.03090196]
[1758645949713,123.18,218.93,218.84,4.1099]
[1758645949921,123.18,218.93,218.84,2.03090196]
[1758645950420,4.109,218.9,218.84,2.03090196]
[1758645950620,7.26,218.88,218.84,2.03090196]
[1758645950913,115.86,218.89,218.84,2.03090196]
[1758645951123,7.26,218.88,218.84,2.03090196]
[1758645951820,7.26,218.88,218.81,2.03090196]
[1758645953819,11.3693,218.88,218.81,2.03090196]
[1758645954116,7.26,218.88,218.77,7.53]
[1758645954522,4.1101,218.84,218.79,2.03090196]
[1758645955217,7.22,218.82,218.76,2.03090196]
[1758645955816,4.1107,218.81,218.74,4.1118]
[1758645956011,7.22,218.8,218.75,2.03090196]
[1758645956213,7.22,218.81,218.75,2.03090196]
[1758645956820,63.9224,218.88,218.78,2.03090196]
[1758645956821,115.8,218.85,218.78,2.03090196]
[1758645957023,123.02,218.85,218.78,2.03090196]
[1758645957424,123.02,218.85,218.76,2.03090196]
[1758645958726,4.1101,218.84,218.76,6.14220196]
[1758645958926,123.02,218.85,218.76,9.07090196]
[1758645959325,123.0,218.84,218.76,9.07090196]
[1758645960631,4.1102,218.83,218.76,9.07090196]
[1758645960830,7.22,218.82,218.73,2.03090196]
[1758645961029,9.25090196,218.82,218.73,2.03090196]
[1758645961526,7.22,218.81,218.73,2.03090196]
[1758645961831,7.22,218.8,218.76,2.03090196]
[1758645962228,7.22,218.85,218.76,2.03090196]
[1758645962428,7.22,218.85,218.76,9.07090196]
[1758645963036,7.22,218.85,218.79,2.03090196]
[1758645963743,7.22,218.85,218.8,4.1106]
[1758645963932,7.22,218.85,218.8,11.1506]
[1758645964334,101.5,218.86,218.79,2.03090196]
[1758645965039,105.6097,218.86,218.79,2.03090196]
[1758645965241,101.5,218.86,218.77,4.1112]
[1758645965540,7.22,218.85,218.76,2.03090196]
[1758645965738,7.22,218.83,218.75,4.1116]
[1758645966943,7.22,218.83,218.77,2.03090196]
[1758645967538,7.22,218.89,218.74,63.9603]
[1758645967745,7.22,218.94,218.85,2.03090196]
[1758645967937,7.22,218.91,218.82,2.03090196]
[1758645968542,7.22,218.91,218.8,10.20562686]
[1758645968738,7.22,218.91,218.81,4.1105]
[1758645968945,7.22,218.91,218.76,3.16562686]
[1758645969138,63.916,218.9,218.76,3.16562686]
[1758645969343,111.16,218.89,218.76,3.16562686]
[1758645970844,11.3299,218.85,218.78,4.111]
[1758645971940,7.22,218.85,218.76,3.16562686]
[1758645972141,7.22,218.85,218.79,4.1107]
[1758645973046,7.22,218.85,218.77,4.1112]
[1758645974047,7.52,218.81,218.75,4.1116]
[1758645974444,7.52,218.81,218.72,3.16562686]
[1758645974841,4.1109,218.79,218.73,4.112]
[1758645975047,7.52,218.81,218.73,4.112]
[1758645975247,7.52,218.81,218.72,3.16562686]
[1758645976249,7.52,218.81,218.77,11.2511]
[1758645976438,29.02,218.85,218.77,4.1111]
[1758645976643,29.02,218.85,218.75,7.14]
[1758645976838,29.02,218.85,218.72,10.30562686]
[1758645976839,7.52,218.84,218.72,10.30562686]
[1758645977051,4.1103,218.83,218.76,4.1113]
[1758645977250,7.52,218.84,218.74,7.14]
[1758645977443,7.52,218.84,218.76,3.16562686]
[1758645978346,7.52,218.84,218.77,7.14]
[1758645979051,7.52,218.84,218.81,4.1103]
[1758645979353,7.52,218.93,218.8,10.30562686]
[1758645979553,7.52,218.91,218.8,10.30562686]
[1758645979752,7.52,218.91,218.83,4.11]
[1758645980651,7.52,218.91,218.84,4.1098]
[1758645980652,11.6288,218.91,218.84,4.1098]
[1758645980854,7.52,218.91,218.84,4.1098]
[1758645981148,7.52,218.91,218.8,74.24982686]
[1758645982050,119.7086,218.92,218.86,4.1095]
[1758645982255,123.12,218.92,218.86,4.1095]
[1758645982957,7.52,218.92,218.87,4.1093]
[1758645983255,7.52,218.92,218.84,3.16562686]
[1758645983444,115.56,218.95,218.84,3.16562686]
[1758645983651,7.57,218.91,218.84,3.16562686]
[1758645984056,7.57,218.94,218.86,4.1094]
[1758645984356,4.1086,218.92,218.84,3.16562686]
[1758645984560,7.57,218.91,218.85,4.1096]
[1758645985658,4.1081,218.94,218.86,4.1094]
[1758645985953,7.57,218.93,218.86,4.1094]
[1758645986152,7.57,218.93,218.88,4.1092]
[1758645986355,7.57,218.94,218.88,4.1092]
[1758645987460,123.13,218.95,218.86,7.72]
[1758645988462,7.57,219.0,218.88,3.16562686]
[1758645988654,7.57,219.0,218.92,10.88562686]
[1758645989163,7.57,219.0,218.93,4.1082]
[1758645989859,7.57,219.01,218.86,10.88562686]
[1758645990668,115.52,219.02,218.86,10.88562686]
[1758645990854,4.1077,218.96,218.89,4.109]
[1758645991059,7.57,218.95,218.89,4.109]
[1758645991260,7.57,218.95,218.86,71.6462]
[1758645991454,118.68562686,219.02,218.92,4.1083]